[Event "*** Titled Tuesday Blitz"]
[Site "Chess.com"]
[Date "2019.04.02"]
[Round "4"]
[White "Joseph_Truelson"]
[Black "samdanov"]
[Result "1-0"]
[WhiteElo "2281"]
[BlackElo "2178"]
[TimeControl "180+2"]
[EndTime "14:49:23 PDT"]
[Termination "Joseph_Truelson won by resignation"]

1. d4 {[%clk 0:03:01.9]} 1... Nf6 {[%clk 0:03:00]} 2. Nc3 {[%clk 0:03:02.8]}
2... d5 {[%clk 0:02:58.5]} 3. Bf4 {[%clk 0:03:03.8]} 3... a6 {[%clk 0:02:59.7]}
4. e3 {[%clk 0:02:50.5]} 4... Bf5 {[%clk 0:02:57.6]} 5. f3 {[%clk 0:02:44.3]}
5... h5 {[%clk 0:02:52.3]} 6. Bd3 {[%clk 0:02:42.3]} 6... Bxd3 {[%clk
0:02:52.3]} 7. Qxd3 {[%clk 0:02:44.2]} 7... e6 {[%clk 0:02:51.4]} 8. Nge2 {[%clk
0:02:44.6]} 8... Bd6 {[%clk 0:02:52.5]} 9. O-O {[%clk 0:02:43.1]} 9... Bxf4
{[%clk 0:02:50.7]} 10. Nxf4 {[%clk 0:02:45]} 10... g5 {[%clk 0:02:50.7]} 11.
Nfe2 {[%clk 0:02:42.8]} 11... Nc6 {[%clk 0:02:33.7]} 12. e4 {[%clk 0:02:35.6]}
12... Qe7 {[%clk 0:01:44.2]} 13. exd5 {[%clk 0:02:19.2]} 13... exd5 {[%clk
0:01:39.9]} 14. Rae1 {[%clk 0:02:17.3]} 14... O-O-O {[%clk 0:01:39.3]} 15. a3
{[%clk 0:01:59.7]} 15... Qd7 {[%clk 0:01:31.6]} 16. b4 {[%clk 0:01:50.9]} 16...
h4 {[%clk 0:01:28.7]} 17. b5 {[%clk 0:01:46.8]} 17... axb5 {[%clk 0:01:29.7]}
18. Nxb5 {[%clk 0:01:45.9]} 18... h3 {[%clk 0:01:23.3]} 19. g3 {[%clk
0:01:44.7]} 19... Rhe8 {[%clk 0:01:22.4]} 20. Nec3 {[%clk 0:01:34.1]} 20... Re6
{[%clk 0:01:16.7]} 21. Qf5 {[%clk 0:01:18.9]} 21... Rxe1 {[%clk 0:00:34.6]} 22.
Qxd7+ {[%clk 0:01:20.8]} 22... Kxd7 {[%clk 0:00:33.6]} 23. Rxe1 {[%clk
0:01:22.1]} 23... Ra8 {[%clk 0:00:29.7]} 24. Kf2 {[%clk 0:01:12.3]} 24... Ra5
{[%clk 0:00:30.8]} 25. Ke3 {[%clk 0:01:00.1]} 25... Nd8 {[%clk 0:00:31.1]} 26.
a4 {[%clk 0:00:54.6]} 26... c6 {[%clk 0:00:27.3]} 27. Na3 {[%clk 0:00:55.1]}
27... b5 {[%clk 0:00:26.4]} 28. Rb1 {[%clk 0:00:45.4]} 28... Ne6 {[%clk
0:00:19.6]} 29. Rb3 {[%clk 0:00:37.7]} 29... bxa4 {[%clk 0:00:18.1]} 30. Rb4
{[%clk 0:00:29.2]} 30... c5 {[%clk 0:00:19.1]} 31. dxc5 {[%clk 0:00:29.3]} 31...
d4+ {[%clk 0:00:20]} 32. Rxd4+ {[%clk 0:00:29.3]} 32... Nxd4 {[%clk 0:00:21.9]}
33. Kxd4 {[%clk 0:00:31.2]} 33... Kc6 {[%clk 0:00:21.9]} 34. Nc4 {[%clk
0:00:26.1]} 34... Ra7 {[%clk 0:00:19.4]} 35. Ne5+ {[%clk 0:00:24.7]} 35... Kc7
{[%clk 0:00:20.3]} 36. Nb5+ {[%clk 0:00:25.6]} 36... Kc8 {[%clk 0:00:18.8]} 37.
Nxa7+ {[%clk 0:00:25.7]} 37... Kb8 {[%clk 0:00:19.5]} 38. Nb5 {[%clk 0:00:26.2]}
1-0

[Event "*** Titled Tuesday Blitz"]
[Site "Chess.com"]
[Date "2019.04.02"]
[Round "4"]
[White "MikaelyanArman"]
[Black "Zhuu96"]
[Result "0-1"]
[WhiteElo "2752"]
[BlackElo "2965"]
[TimeControl "180+2"]
[EndTime "14:49:28 PDT"]
[Termination "Zhuu96 won by resignation"]

1. e4 {[%clk 0:02:54.2]} 1... c5 {[%clk 0:02:58.3]} 2. Nc3 {[%clk 0:02:54.5]}
2... d6 {[%clk 0:02:57.5]} 3. f4 {[%clk 0:02:55.2]} 3... a6 {[%clk 0:02:54.3]}
4. Nf3 {[%clk 0:02:54.5]} 4... b5 {[%clk 0:02:55.5]} 5. g3 {[%clk 0:02:52.1]}
5... Bb7 {[%clk 0:02:56.4]} 6. d3 {[%clk 0:02:53.1]} 6... g6 {[%clk 0:02:57.7]}
7. Bg2 {[%clk 0:02:53.9]} 7... Bg7 {[%clk 0:02:59.3]} 8. O-O {[%clk 0:02:55.3]}
8... Nf6 {[%clk 0:03:00.4]} 9. h3 {[%clk 0:02:52.8]} 9... Nc6 {[%clk 0:02:53.3]}
10. g4 {[%clk 0:02:42.9]} 10... b4 {[%clk 0:02:50.3]} 11. Ne2 {[%clk 0:02:41.9]}
11... O-O {[%clk 0:02:42.5]} 12. Ng3 {[%clk 0:02:40.7]} 12... Nd7 {[%clk
0:02:36.6]} 13. h4 {[%clk 0:02:34.6]} 13... Nd4 {[%clk 0:02:32.8]} 14. g5 {[%clk
0:02:31.4]} 14... e6 {[%clk 0:02:30.8]} 15. h5 {[%clk 0:02:26.2]} 15... f5
{[%clk 0:02:13.9]} 16. exf5 {[%clk 0:02:11.9]} 16... gxf5 {[%clk 0:01:55.8]} 17.
h6 {[%clk 0:02:04.5]} 17... Bh8 {[%clk 0:01:54.6]} 18. Nxd4 {[%clk 0:01:52.2]}
18... Bxd4+ {[%clk 0:01:53.9]} 19. Kh2 {[%clk 0:01:53.7]} 19... Bxg2 {[%clk
0:01:54.6]} 20. Kxg2 {[%clk 0:01:55.6]} 20... Qe8 {[%clk 0:01:51.9]} 21. Qf3
{[%clk 0:01:43.8]} 21... Nb6 {[%clk 0:01:45.6]} 22. c3 {[%clk 0:01:32.7]} 22...
bxc3 {[%clk 0:01:45.1]} 23. bxc3 {[%clk 0:01:34.6]} 23... Bxc3 {[%clk
0:01:46.4]} 24. Rb1 {[%clk 0:01:35.8]} 24... Rb8 {[%clk 0:01:45.4]} 25. Bb2
{[%clk 0:01:24.6]} 25... Bxb2 {[%clk 0:01:14.8]} 26. Rxb2 {[%clk 0:01:26.5]}
26... Nd5 {[%clk 0:01:16.1]} 27. Re2 {[%clk 0:01:27.1]} 27... Rb4 {[%clk
0:01:13.8]} 28. Nh5 {[%clk 0:01:19.7]} 28... Qg6 {[%clk 0:01:14.1]} 29. Kg3
{[%clk 0:01:14.6]} 29... Kh8 {[%clk 0:01:13.4]} 30. Kh2 {[%clk 0:00:34.8]} 30...
Rg8 {[%clk 0:01:07.1]} 31. Rfe1 {[%clk 0:00:33.4]} 31... e5 {[%clk 0:01:08.1]}
32. Qxd5 {[%clk 0:00:12]} 32... Qxh5+ {[%clk 0:01:08.4]} 33. Kg1 {[%clk
0:00:13.5]} 33... Rxf4 {[%clk 0:01:05.6]} 34. Rg2 {[%clk 0:00:14.4]} 34... Rg4
{[%clk 0:00:51.5]} 35. Re2 {[%clk 0:00:14.7]} 35... R4xg5 {[%clk 0:00:50.6]} 36.
Qxd6 {[%clk 0:00:11.8]} 36... Rxg2+ {[%clk 0:00:49.2]} 37. Rxg2 {[%clk
0:00:13.7]} 37... Rxg2+ {[%clk 0:00:49]} 38. Kxg2 {[%clk 0:00:15.6]} 38... Qg6+
{[%clk 0:00:50.6]} 39. Qxg6 {[%clk 0:00:14.8]} 39... hxg6 {[%clk 0:00:51.9]} 40.
d4 {[%clk 0:00:16.3]} 40... exd4 {[%clk 0:00:51]} 0-1

[Event "*** Titled Tuesday Blitz"]
[Site "Chess.com"]
[Date "2019.04.02"]
[Round "4"]
[White "emperor87"]
[Black "Quiet_Desperation"]
[Result "1-0"]
[WhiteElo "2644"]
[BlackElo "2420"]
[TimeControl "180+2"]
[EndTime "14:49:29 PDT"]
[Termination "emperor87 won by resignation"]

1. Nf3 {[%clk 0:03:01.9]} 1... Nf6 {[%clk 0:03:00.6]} 2. g3 {[%clk 0:03:03.1]}
2... e6 {[%clk 0:03:02]} 3. Bg2 {[%clk 0:03:04.4]} 3... Be7 {[%clk 0:03:03.1]}
4. O-O {[%clk 0:03:05.5]} 4... O-O {[%clk 0:03:04.7]} 5. c4 {[%clk 0:03:06.5]}
5... d5 {[%clk 0:03:05.5]} 6. d4 {[%clk 0:03:06.5]} 6... c6 {[%clk 0:03:06.9]}
7. Nbd2 {[%clk 0:03:06.4]} 7... Nbd7 {[%clk 0:03:08.2]} 8. Rb1 {[%clk 0:03:07]}
8... b6 {[%clk 0:03:09.7]} 9. b4 {[%clk 0:03:08]} 9... Bb7 {[%clk 0:03:09.6]}
10. b5 {[%clk 0:03:09.1]} 10... c5 {[%clk 0:03:09.5]} 11. Ne5 {[%clk 0:03:06.6]}
11... Nxe5 {[%clk 0:03:07.2]} 12. dxe5 {[%clk 0:03:07.5]} 12... Nd7 {[%clk
0:03:08.4]} 13. cxd5 {[%clk 0:03:08]} 13... Bxd5 {[%clk 0:03:07.5]} 14. e4
{[%clk 0:03:02.1]} 14... Bb7 {[%clk 0:03:07]} 15. Nc4 {[%clk 0:03:01.8]} 15...
Qc7 {[%clk 0:02:55.7]} 16. f4 {[%clk 0:03:02.6]} 16... Rfd8 {[%clk 0:02:55.5]}
17. Qc2 {[%clk 0:03:02.5]} 17... Nf8 {[%clk 0:02:48.9]} 18. Be3 {[%clk
0:03:02.3]} 18... Rd7 {[%clk 0:02:49.8]} 19. a4 {[%clk 0:03:00.8]} 19... Rad8
{[%clk 0:02:49.4]} 20. Rfd1 {[%clk 0:03:01.1]} 20... Rxd1+ {[%clk 0:02:49.9]}
21. Rxd1 {[%clk 0:03:01.1]} 21... Rxd1+ {[%clk 0:02:16]} 22. Qxd1 {[%clk
0:03:00.8]} 22... Qd7 {[%clk 0:02:17.5]} 23. Qc2 {[%clk 0:02:56.6]} 23... h5
{[%clk 0:01:54.4]} 24. h4 {[%clk 0:02:55.3]} 24... g6 {[%clk 0:01:52.7]} 25. Bf3
{[%clk 0:02:55.8]} 25... f5 {[%clk 0:01:35.1]} 26. exf6 {[%clk 0:02:54.2]} 26...
Bxf6 {[%clk 0:01:36.2]} 27. Kf2 {[%clk 0:02:53.9]} 27... Bd4 {[%clk 0:01:31.1]}
28. Qd3 {[%clk 0:02:54.2]} 28... e5 {[%clk 0:01:18.5]} 29. fxe5 {[%clk
0:02:46.1]} 29... Ne6 {[%clk 0:01:16.8]} 30. Ke2 {[%clk 0:02:31.6]} 30... Qg7
{[%clk 0:01:11.7]} 31. Nd6 {[%clk 0:02:18.2]} 31... Bxe3 {[%clk 0:01:05.1]} 32.
Kxe3 {[%clk 0:02:11.9]} 32... Nd4 {[%clk 0:01:03.9]} 33. Qc4+ {[%clk 0:02:09.9]}
33... Kh8 {[%clk 0:00:57.7]} 34. Qf7 {[%clk 0:02:07.6]} 34... Qxf7 {[%clk
0:00:26.3]} 35. Nxf7+ {[%clk 0:02:07.5]} 35... Kg7 {[%clk 0:00:27.7]} 36. Nd6
{[%clk 0:02:08.3]} 36... Ba8 {[%clk 0:00:21.3]} 37. Bg2 {[%clk 0:02:06.5]} 37...
Kf8 {[%clk 0:00:18]} 38. Bh3 {[%clk 0:02:06.9]} 38... Ke7 {[%clk 0:00:19.3]} 39.
g4 {[%clk 0:01:50.4]} 39... hxg4 {[%clk 0:00:17.5]} 40. Bxg4 {[%clk 0:01:51]}
40... Kd8 {[%clk 0:00:13.6]} 41. Kf4 {[%clk 0:01:50.3]} 41... Kc7 {[%clk
0:00:05]} 42. Kg5 {[%clk 0:01:49.5]} 42... Bb7 {[%clk 0:00:03.9]} 43. Kxg6
{[%clk 0:01:42.7]} 43... c4 {[%clk 0:00:03.9]} 44. Nxc4 {[%clk 0:01:42.1]} 44...
Bxe4+ {[%clk 0:00:05.1]} 45. Kg7 {[%clk 0:01:40.8]} 45... Bc2 {[%clk 0:00:03.1]}
46. h5 {[%clk 0:01:40.6]} 46... Bxa4 {[%clk 0:00:04]} 47. h6 {[%clk 0:01:41.5]}
47... Bc2 {[%clk 0:00:05.5]} 48. e6 {[%clk 0:01:42.2]} 48... Kd8 {[%clk
0:00:04.8]} 49. Kf8 {[%clk 0:01:41.1]} 49... Nxe6+ {[%clk 0:00:05.4]} 50. Bxe6
{[%clk 0:01:41.1]} 50... Kc7 {[%clk 0:00:06.9]} 51. Kg7 {[%clk 0:01:39.8]} 51...
a5 {[%clk 0:00:07.6]} 52. bxa6 {[%clk 0:01:39.7]} 52... b5 {[%clk 0:00:09.2]}
53. Na3 {[%clk 0:01:40.7]} 53... Bd3 {[%clk 0:00:09.5]} 54. Nxb5+ {[%clk
0:01:41.6]} 54... Kb6 {[%clk 0:00:10.9]} 55. Nd6 {[%clk 0:01:41.5]} 55... Kxa6
{[%clk 0:00:12]} 56. Bf5 {[%clk 0:01:42.7]} 1-0

[Event "*** Titled Tuesday Blitz"]
[Site "Chess.com"]
[Date "2019.04.02"]
[Round "4"]
[White "HanSchut"]
[Black "Atanejhad"]
[Result "1-0"]
[WhiteElo "2185"]
[BlackElo "2195"]
[TimeControl "180+2"]
[EndTime "14:49:35 PDT"]
[Termination "HanSchut won by resignation"]

1. e4 {[%clk 0:03:01.9]} 1... c5 {[%clk 0:03:00.8]} 2. Nf3 {[%clk 0:03:02.1]}
2... g6 {[%clk 0:03:00.1]} 3. c4 {[%clk 0:03:02.1]} 3... Nc6 {[%clk 0:02:59]} 4.
d4 {[%clk 0:02:58.4]} 4... cxd4 {[%clk 0:03:00.9]} 5. Nxd4 {[%clk 0:03:00]} 5...
Nf6 {[%clk 0:02:57.7]} 6. Nc3 {[%clk 0:03:00.4]} 6... Nxd4 {[%clk 0:02:58.8]} 7.
Qxd4 {[%clk 0:03:00.7]} 7... d6 {[%clk 0:03:00.2]} 8. Bg5 {[%clk 0:03:00.8]}
8... Bg7 {[%clk 0:03:01.4]} 9. Qd2 {[%clk 0:03:02]} 9... O-O {[%clk 0:03:02]}
10. Rc1 {[%clk 0:03:01.3]} 10... Be6 {[%clk 0:03:02.8]} 11. Be2 {[%clk
0:03:01.9]} 11... Qa5 {[%clk 0:03:04]} 12. O-O {[%clk 0:03:01.6]} 12... Rfc8
{[%clk 0:03:04.4]} 13. b3 {[%clk 0:03:02.9]} 13... a6 {[%clk 0:03:04.5]} 14. f4
{[%clk 0:03:04]} 14... h6 {[%clk 0:02:02.2]} 15. Bh4 {[%clk 0:01:58.6]} 15...
Kh7 {[%clk 0:00:51.2]} 16. Qe3 {[%clk 0:01:05]} 16... Qc5 {[%clk 0:00:50.1]} 17.
Qxc5 {[%clk 0:00:59]} 17... dxc5 {[%clk 0:00:52]} 18. e5 {[%clk 0:00:57.3]}
18... Ng8 {[%clk 0:00:51]} 19. Nd5 {[%clk 0:00:37.1]} 19... Bxd5 {[%clk
0:00:52]} 20. cxd5 {[%clk 0:00:37.6]} 20... b5 {[%clk 0:00:53.6]} 21. Bf2 {[%clk
0:00:33.8]} 21... g5 {[%clk 0:00:51.9]} 22. g3 {[%clk 0:00:34.2]} 22... gxf4
{[%clk 0:00:35.9]} 23. gxf4 {[%clk 0:00:34.7]} 23... Rd8 {[%clk 0:00:28.5]} 24.
Bf3 {[%clk 0:00:31.7]} 24... Rac8 {[%clk 0:00:27.5]} 25. Rxc5 {[%clk 0:00:32.3]}
25... Rxc5 {[%clk 0:00:28.3]} 26. Bxc5 {[%clk 0:00:34.2]} 26... e6 {[%clk
0:00:23.6]} 27. d6 {[%clk 0:00:31.4]} 27... f6 {[%clk 0:00:24.3]} 28. Bb6 {[%clk
0:00:28.4]} 28... Rb8 {[%clk 0:00:20.7]} 29. d7 {[%clk 0:00:25.5]} 29... fxe5
{[%clk 0:00:11.8]} 30. d8=Q {[%clk 0:00:26.4]} 30... Rxd8 {[%clk 0:00:12.6]} 31.
Bxd8 {[%clk 0:00:28.3]} 31... exf4 {[%clk 0:00:13.7]} 32. Be4+ {[%clk
0:00:29.3]} 32... Kh8 {[%clk 0:00:14.3]} 33. Rxf4 {[%clk 0:00:30.3]} 33... Bd4+
{[%clk 0:00:15.8]} 34. Kg2 {[%clk 0:00:27.7]} 34... e5 {[%clk 0:00:16.8]} 35.
Rf8 {[%clk 0:00:21.4]} 35... Kg7 {[%clk 0:00:17.4]} 36. Re8 {[%clk 0:00:23]}
36... Nf6 {[%clk 0:00:16.3]} 37. Bxf6+ {[%clk 0:00:22.9]} 37... Kxf6 {[%clk
0:00:18.2]} 1-0

[Event "*** Titled Tuesday Blitz"]
[Site "Chess.com"]
[Date "2019.04.02"]
[Round "4"]
[White "MatthewG-p4p"]
[Black "MMSANCHEZ"]
[Result "1-0"]
[WhiteElo "2668"]
[BlackElo "2494"]
[TimeControl "180+2"]
[EndTime "14:49:36 PDT"]
[Termination "MatthewG-p4p won by resignation"]

1. Nf3 {[%clk 0:03:01.9]} 1... Nf6 {[%clk 0:03:00.2]} 2. b3 {[%clk 0:03:03.4]}
2... g6 {[%clk 0:03:01.3]} 3. Bb2 {[%clk 0:03:05]} 3... Bg7 {[%clk 0:03:02.8]}
4. e3 {[%clk 0:03:06]} 4... O-O {[%clk 0:03:04.3]} 5. d4 {[%clk 0:03:07.4]} 5...
d5 {[%clk 0:03:05.8]} 6. Bd3 {[%clk 0:03:07.2]} 6... c6 {[%clk 0:03:06.1]} 7.
O-O {[%clk 0:03:08.6]} 7... Bf5 {[%clk 0:03:07.5]} 8. c4 {[%clk 0:03:08.6]} 8...
e6 {[%clk 0:03:07]} 9. Re1 {[%clk 0:03:08.7]} 9... Nbd7 {[%clk 0:03:04.9]} 10.
Nc3 {[%clk 0:03:08.9]} 10... Bxd3 {[%clk 0:02:54.5]} 11. Qxd3 {[%clk 0:03:10.8]}
11... dxc4 {[%clk 0:02:55.8]} 12. bxc4 {[%clk 0:03:12.1]} 12... c5 {[%clk
0:02:56.9]} 13. d5 {[%clk 0:03:11.9]} 13... exd5 {[%clk 0:02:56.9]} 14. cxd5
{[%clk 0:03:13.8]} 14... Ng4 {[%clk 0:02:52.1]} 15. e4 {[%clk 0:03:08.7]} 15...
a6 {[%clk 0:02:51.5]} 16. a4 {[%clk 0:03:09.4]} 16... Rc8 {[%clk 0:02:43.9]} 17.
a5 {[%clk 0:03:02.3]} 17... c4 {[%clk 0:02:39.1]} 18. Qc2 {[%clk 0:03:02.2]}
18... Qc7 {[%clk 0:02:23.1]} 19. h3 {[%clk 0:02:31.8]} 19... Nge5 {[%clk
0:02:21.4]} 20. Nxe5 {[%clk 0:02:31.7]} 20... Nxe5 {[%clk 0:02:21.5]} 21. Ne2
{[%clk 0:02:19.4]} 21... Nd3 {[%clk 0:02:16.3]} 22. Bxg7 {[%clk 0:02:19.5]}
22... Kxg7 {[%clk 0:02:16.4]} 23. Qc3+ {[%clk 0:02:19.6]} 23... f6 {[%clk
0:02:15.9]} 24. Reb1 {[%clk 0:02:17.5]} 24... Rfe8 {[%clk 0:02:09.3]} 25. Nd4
{[%clk 0:02:18.4]} 25... Nf4 {[%clk 0:01:10.2]} 26. f3 {[%clk 0:01:51.5]} 26...
Qe5 {[%clk 0:00:58.2]} 27. Rxb7+ {[%clk 0:01:48.5]} 27... Kh6 {[%clk 0:00:59.1]}
28. Kh1 {[%clk 0:01:32.3]} 28... Qg5 {[%clk 0:00:47.6]} 29. Ra2 {[%clk
0:01:17.9]} 29... Nh5 {[%clk 0:00:35.2]} 30. Ne6 {[%clk 0:00:55.1]} 30... Rxe6
{[%clk 0:00:34.7]} 31. dxe6 {[%clk 0:00:57]} 31... Rd8 {[%clk 0:00:35.8]} 32.
Rd7 {[%clk 0:00:54.8]} 32... Rb8 {[%clk 0:00:36.4]} 33. Rd1 {[%clk 0:00:37.5]}
33... Ng3+ {[%clk 0:00:15.4]} 34. Kg1 {[%clk 0:00:37.6]} 34... Re8 {[%clk
0:00:07.3]} 35. Qxc4 {[%clk 0:00:32.2]} 35... Kh5 {[%clk 0:00:03.9]} 36. Rf2
{[%clk 0:00:28.3]} 36... Qf4 {[%clk 0:00:02]} 37. Qxa6 {[%clk 0:00:25.3]} 37...
Qf5 {[%clk 0:00:02.3]} 38. exf5 {[%clk 0:00:26.2]} 38... Nxf5 {[%clk 0:00:03.8]}
1-0

[Event "*** Titled Tuesday Blitz"]
[Site "Chess.com"]
[Date "2019.04.02"]
[Round "4"]
[White "PulpanJ"]
[Black "VeraNebolsina"]
[Result "1-0"]
[WhiteElo "2679"]
[BlackElo "2413"]
[TimeControl "180+2"]
[EndTime "14:49:37 PDT"]
[Termination "PulpanJ won by resignation"]

1. e4 {[%clk 0:03:01.9]} 1... c5 {[%clk 0:03:00]} 2. Nf3 {[%clk 0:03:01.1]} 2...
d6 {[%clk 0:03:00.7]} 3. d4 {[%clk 0:03:00]} 3... cxd4 {[%clk 0:03:01.6]} 4.
Nxd4 {[%clk 0:03:01.1]} 4... Nf6 {[%clk 0:03:02.6]} 5. Nc3 {[%clk 0:02:57.5]}
5... a6 {[%clk 0:03:03.5]} 6. Nb3 {[%clk 0:02:55.7]} 6... g6 {[%clk 0:02:35.5]}
7. Be2 {[%clk 0:02:52.1]} 7... Bg7 {[%clk 0:02:36.6]} 8. g4 {[%clk 0:02:53.3]}
8... Nc6 {[%clk 0:02:26.9]} 9. g5 {[%clk 0:02:54.2]} 9... Nd7 {[%clk 0:02:27.4]}
10. h4 {[%clk 0:02:55.6]} 10... a5 {[%clk 0:02:18.2]} 11. a4 {[%clk 0:02:52.2]}
11... Qb6 {[%clk 0:02:12.7]} 12. Nd5 {[%clk 0:02:46]} 12... Qd8 {[%clk
0:02:08.9]} 13. h5 {[%clk 0:02:45.6]} 13... e6 {[%clk 0:01:58.8]} 14. h6 {[%clk
0:02:15.2]} 14... Be5 {[%clk 0:01:55.9]} 15. Ne3 {[%clk 0:02:09.6]} 15... Qxg5
{[%clk 0:01:40.9]} 16. Nc4 {[%clk 0:02:06.9]} 16... Qe7 {[%clk 0:01:15.4]} 17.
f4 {[%clk 0:02:06.7]} 17... d5 {[%clk 0:01:14.3]} 18. exd5 {[%clk 0:02:02.6]}
18... exd5 {[%clk 0:01:14.9]} 19. Nxe5 {[%clk 0:02:03.5]} 19... Ndxe5 {[%clk
0:01:10.5]} 20. fxe5 {[%clk 0:02:04.1]} 20... Qxe5 {[%clk 0:00:57.9]} 21. Qd3
{[%clk 0:01:58]} 21... Bf5 {[%clk 0:00:53.3]} 22. Qe3 {[%clk 0:01:54.3]} 22...
Be4 {[%clk 0:00:54.4]} 23. Rf1 {[%clk 0:01:50.6]} 23... Nb4 {[%clk 0:00:50]} 24.
Bd1 {[%clk 0:01:18.5]} 24... O-O {[%clk 0:00:42.8]} 25. Bd2 {[%clk 0:01:17.6]}
25... Qxb2 {[%clk 0:00:21.6]} 26. Bc3 {[%clk 0:01:13.7]} 26... Nxc2+ {[%clk
0:00:21.6]} 27. Bxc2 {[%clk 0:01:14.6]} 27... Qxc2 {[%clk 0:00:22.1]} 28. Qd4
{[%clk 0:01:11.8]} 28... f6 {[%clk 0:00:22.8]} 29. Rxf6 {[%clk 0:01:12.9]} 29...
Rf7 {[%clk 0:00:10.7]} 30. Rxg6+ {[%clk 0:01:05.6]} 30... Kf8 {[%clk 0:00:09.6]}
31. Rg8+ {[%clk 0:00:36.5]} 31... Ke7 {[%clk 0:00:09.1]} 32. Rxa8 {[%clk
0:00:35.8]} 32... Qxb3 {[%clk 0:00:05.7]} 33. Qe5+ {[%clk 0:00:36]} 33... Kd7
{[%clk 0:00:06.6]} 34. Qe8+ {[%clk 0:00:37.1]} 34... Kd6 {[%clk 0:00:07.4]} 35.
Be5+ {[%clk 0:00:38.1]} 35... Kc5 {[%clk 0:00:07.2]} 36. Rc1+ {[%clk 0:00:36.6]}
36... Kb4 {[%clk 0:00:07.8]} 37. Bc3+ {[%clk 0:00:38.1]} 37... Ka3 {[%clk
0:00:07.7]} 38. Qxf7 {[%clk 0:00:38.8]} 1-0

[Event "*** Titled Tuesday Blitz"]
[Site "Chess.com"]
[Date "2019.04.02"]
[Round "4"]
[White "ruvat"]
[Black "Mikedannnn"]
[Result "0-1"]
[WhiteElo "2289"]
[BlackElo "2516"]
[TimeControl "180+2"]
[EndTime "14:49:38 PDT"]
[Termination "Mikedannnn won by resignation"]

1. d4 {[%clk 0:03:00.8]} 1... Nf6 {[%clk 0:03:00.1]} 2. c4 {[%clk 0:03:01.6]}
2... c5 {[%clk 0:03:00.6]} 3. d5 {[%clk 0:03:01.9]} 3... e6 {[%clk 0:03:00.8]}
4. Nc3 {[%clk 0:03:01.9]} 4... exd5 {[%clk 0:03:02.2]} 5. cxd5 {[%clk
0:03:01.8]} 5... Bd6 {[%clk 0:03:01.9]} 6. Nf3 {[%clk 0:02:59.3]} 6... O-O
{[%clk 0:03:01.4]} 7. Bg5 {[%clk 0:02:59.6]} 7... Re8 {[%clk 0:03:00.5]} 8. e3
{[%clk 0:02:59.6]} 8... Bc7 {[%clk 0:03:00.5]} 9. Be2 {[%clk 0:02:52.2]} 9... d6
{[%clk 0:03:00.9]} 10. O-O {[%clk 0:02:51.3]} 10... Nbd7 {[%clk 0:03:00.7]} 11.
Nd2 {[%clk 0:02:49.2]} 11... a6 {[%clk 0:03:01.3]} 12. a4 {[%clk 0:02:49.4]}
12... Rb8 {[%clk 0:03:02.1]} 13. Rb1 {[%clk 0:02:35.1]} 13... h6 {[%clk
0:03:02.5]} 14. Bh4 {[%clk 0:02:35]} 14... Nf8 {[%clk 0:02:52]} 15. Nde4 {[%clk
0:02:29.7]} 15... g5 {[%clk 0:02:51.8]} 16. Nxf6+ {[%clk 0:02:29.5]} 16... Qxf6
{[%clk 0:02:52.2]} 17. Bg3 {[%clk 0:02:30.3]} 17... Bf5 {[%clk 0:02:45.5]} 18.
Ra1 {[%clk 0:02:27.9]} 18... Bd7 {[%clk 0:02:39.8]} 19. Bg4 {[%clk 0:02:07.1]}
19... b5 {[%clk 0:02:34.8]} 20. Bxd7 {[%clk 0:02:07.4]} 20... Nxd7 {[%clk
0:02:35.4]} 21. axb5 {[%clk 0:02:09.1]} 21... axb5 {[%clk 0:02:36.3]} 22. Qg4
{[%clk 0:01:49.4]} 22... Ne5 {[%clk 0:02:30.7]} 23. Bxe5 {[%clk 0:01:50.3]}
23... Qxe5 {[%clk 0:02:31.7]} 24. Rad1 {[%clk 0:01:13.9]} 24... b4 {[%clk
0:02:31.8]} 25. Ne2 {[%clk 0:01:06.3]} 25... f5 {[%clk 0:02:18.9]} 26. Qh5
{[%clk 0:01:06]} 26... Kg7 {[%clk 0:02:18.1]} 27. b3 {[%clk 0:01:04.5]} 27... f4
{[%clk 0:02:11.7]} 28. Rd3 {[%clk 0:00:59.1]} 28... Ra8 {[%clk 0:01:51.5]} 29.
h4 {[%clk 0:00:20.2]} 29... Ra1 {[%clk 0:01:06.2]} 30. Rxa1 {[%clk 0:00:17.2]}
30... Qxa1+ {[%clk 0:01:07.2]} 31. Kh2 {[%clk 0:00:19]} 31... Qe5 {[%clk
0:01:08.8]} 32. f3 {[%clk 0:00:17.1]} 32... fxe3+ {[%clk 0:01:06.9]} 33. Kg1
{[%clk 0:00:15.8]} 33... c4 {[%clk 0:00:53.3]} 34. bxc4 {[%clk 0:00:14.5]} 34...
Bb6 {[%clk 0:00:54.6]} 35. hxg5 {[%clk 0:00:13.6]} 35... hxg5 {[%clk 0:00:55.4]}
36. Qg4 {[%clk 0:00:13.4]} 36... Qa1+ {[%clk 0:00:34.6]} 37. Kh2 {[%clk
0:00:12.8]} 37... Qe5+ {[%clk 0:00:36]} 38. g3 {[%clk 0:00:12.6]} 38... Re7
{[%clk 0:00:34.8]} 39. Kg2 {[%clk 0:00:12.6]} 39... Bc5 {[%clk 0:00:32.2]} 40.
Rb3 {[%clk 0:00:12.6]} 40... Ra7 {[%clk 0:00:32.9]} 41. f4 {[%clk 0:00:12.5]}
41... Qe4+ {[%clk 0:00:34.1]} 42. Kh3 {[%clk 0:00:13.7]} 0-1